fUSD/lending_fUSD_20240116
["ID","MTS","AMOUNT","RATE_DAILY","PERIOD"]
[311833087,1705443064184,-2032.82,0.00032876,2]
[311833088,1705443064195,-500.0,0.00032876,2]
[311833089,1705443064205,-4066.87,0.00032876,2]
[311833090,1705443064215,-726.19,0.00032876,2]
[311833091,1705443064224,-758.71,0.00032876,2]
[311833092,1705443064234,-540.62,0.00032876,2]
[311833093,1705443064243,-934.89,0.00032876,2]
[311833094,1705443064253,-500.0,0.00032876,2]
[311833095,1705443064262,-500.0,0.00032876,2]
[311833096,1705443064273,-500.0,0.00032876,2]
[311833097,1705443064282,-500.0,0.00032876,2]
[311833098,1705443064291,-2120.5,0.00032876,2]
[311833099,1705443064300,-500.0,0.00032876,2]
[311833100,1705443064309,-5136.68,0.00032876,2]
[311833101,1705443064319,-2416.43,0.00032876,2]
[311833102,1705443064330,-500.0,0.00032876,2]
[311833103,1705443064339,-500.0,0.00032876,2]
[311833104,1705443064350,-1211.35,0.00032876,2]
[311833105,1705443064359,-503.13,0.00032876,2]
[311833106,1705443064370,-500.0,0.00032876,2]
[311833107,1705443064380,-1199.9,0.00032876,2]
[311833108,1705443064390,-1409.62,0.00032876,2]
[311833109,1705443064400,-500.0,0.00032876,2]
[311833110,1705443064409,-2959.35,0.00032876,2]
[311833111,1705443064418,-500.0,0.00032876,2]
[311833112,1705443064427,-6184.03,0.00032876,2]
[311833113,1705443064437,-500.0,0.00032876,2]
[311833114,1705443064445,-2643.76,0.00032876,2]
[311833115,1705443064455,-4329.46,0.00032876,2]
[311833116,1705443064464,-2061.74,0.00032876,2]
[311833117,1705443064473,-500.0,0.00032876,2]
[311833118,1705443064482,-500.0,0.00032876,2]
[311833119,1705443064491,-1462.85,0.00032876,2]
[311833120,1705443064500,-500.0,0.00032876,2]
[311833121,1705443064509,-901.32,0.00032876,2]
[311833122,1705443064520,-3071.36,0.00032876,2]
[311833123,1705443064529,-500.0,0.00032876,2]
[311833124,1705443064538,-579.48,0.00032876,2]
[311833125,1705443064547,-603.68,0.00032876,2]
[311833126,1705443064557,-500.0,0.00032876,2]
[311833127,1705443064566,-768.91,0.00032876,2]
[311833128,1705443064576,-500.0,0.00032876,2]
[311833129,1705443064585,-500.0,0.00032876,2]
[311833130,1705443064595,-789.25,0.00032876,2]
[311833131,1705443064605,-3046.09,0.00032876,2]
[311833132,1705443064614,-2677.84,0.00032876,2]
[311833133,1705443064623,-2960.57,0.00032876,2]
[311833134,1705443064632,-500.0,0.00032876,2]
[311833135,1705443064642,-2603.36,0.00032876,2]
[311833136,1705443064651,-622.73,0.00032876,2]
[311833137,1705443064660,-5469.76,0.00032876,2]
[311833138,1705443064669,-500.0,0.00032876,2]
[311833139,1705443064678,-500.0,0.00032876,2]
[311833140,1705443064687,-500.0,0.00032876,2]
[311833141,1705443064696,-2025.68,0.00032876,2]
[311833142,1705443064705,-2152.32,0.00032876,2]
[311833143,1705443064714,-1755.95,0.00032876,2]
[311833144,1705443064723,-9668.23,0.00032876,2]
[311833145,1705443064732,-500.0,0.00032876,2]
[311833146,1705443064741,-7460.99,0.00032876,2]
[311833147,1705443064750,-500.0,0.00032876,2]
[311833148,1705443064759,-6014.2,0.00032876,2]
[311833149,1705443064769,-500.0,0.00032876,2]
[311833150,1705443064778,-500.0,0.00032876,2]
[311833151,1705443064787,-500.0,0.00032876,2]
[311833152,1705443064796,-1762.01,0.00032876,2]
[311833153,1705443064805,-500.0,0.00032876,2]
[311833154,1705443064814,-500.0,0.00032876,2]
[311833155,1705443064822,-500.0,0.00032876,2]
[311833156,1705443064832,-245.50905791,0.00032876,2]
[311833157,1705443064841,-500.0,0.00032876,2]
[311833158,1705443064850,-503.22563943,0.00032876,2]
[311833159,1705443064859,-508.49,0.00032876,2]
[311833160,1705443064867,-500.0,0.00032876,2]
[311833161,1705443064877,-500.0,0.00032876,2]
[311833162,1705443064886,-220.56648061,0.00032876,2]
[311833163,1705443064895,-500.0,0.00032876,2]
[311833164,1705443064904,-1524.46,0.00032876,2]
[311833165,1705443064913,-500.0,0.00032876,2]
[311833166,1705443064922,-500.0,0.00032876,2]
[311833167,1705443064932,-153.84,0.00032877,2]
[311833168,1705443064941,-500.0,0.00032877,6]
[311833169,1705443064950,-500.0,0.00032877,6]
[311833170,1705443064959,-500.0,0.00032877,6]
[311833171,1705443064969,-500.0,0.00032877,6]
[311833172,1705443064978,-500.0,0.00032877,6]
[311833173,1705443064987,-150.1,0.00032877,2]
[311833174,1705443064996,-900.0,0.00032877,2]
[311833175,1705443065005,-2400.0,0.00032877,7]
[311833176,1705443065014,-900.0,0.00032877,2]
[311833177,1705443065025,-150.0,0.00032877,2]
[311833178,1705443065034,-1648.31,0.00032877,15]
[311833179,1705443065043,-900.0,0.00032877,2]
[311833180,1705443065052,-900.0,0.00032877,2]
[311833181,1705443065061,-900.0,0.00032877,2]
[311833182,1705443065071,-900.0,0.00032877,2]
[311833183,1705443065080,-900.0,0.00032877,2]
[311833184,1705443065089,-900.0,0.00032877,2]
[311833185,1705443065098,-900.0,0.00032877,2]
[311833186,1705443065108,-900.0,0.00032877,2]
[311833187,1705443065117,-900.0,0.00032877,2]
[311833188,1705443065127,-900.0,0.00032877,2]
[311833189,1705443065135,-900.0,0.00032877,2]
[311833190,1705443065145,-900.0,0.00032877,2]
[311833191,1705443065155,-900.0,0.00032877,2]
[311833192,1705443065164,-900.0,0.00032877,2]
[311833193,1705443065174,-900.0,0.00032877,2]
[311833194,1705443065184,-900.0,0.00032877,2]
[311833195,1705443065195,-900.0,0.00032877,2]
[311833196,1705443065205,-900.0,0.00032877,2]
[311833197,1705443065214,-900.0,0.00032877,2]
[311833198,1705443065223,-900.0,0.00032877,2]
[311833199,1705443065233,-900.0,0.00032877,2]
[311833200,1705443065242,-900.0,0.00032877,2]
[311833201,1705443065252,-900.0,0.00032877,2]
[311833202,1705443065261,-900.0,0.00032877,2]
[311833203,1705443065272,-900.0,0.00032877,2]
[311833204,1705443065281,-900.0,0.00032877,2]
[311833205,1705443065291,-900.0,0.00032877,2]
[311833206,1705443065301,-900.0,0.00032877,2]
[311833207,1705443065310,-900.0,0.00032877,2]
[311833208,1705443065322,-900.0,0.00032877,2]
[311833209,1705443065331,-900.0,0.00032877,2]
[311833210,1705443065341,-900.0,0.00032877,2]
[311833211,1705443065350,-900.0,0.00032877,2]
[311833212,1705443065360,-900.0,0.00032877,2]
[311833213,1705443065369,-900.0,0.00032877,2]
[311833214,1705443065379,-900.0,0.00032877,2]
[311833215,1705443065389,-900.0,0.00032877,2]
[311833216,1705443065398,-900.0,0.00032877,2]
[311833217,1705443065407,-900.0,0.00032877,2]
[311833218,1705443065417,-900.0,0.00032877,2]
[311833219,1705443065426,-900.0,0.00032877,2]
[311833220,1705443065436,-900.0,0.00032877,2]
[311833221,1705443065445,-900.0,0.00032877,2]
[311833222,1705443065454,-900.0,0.00032877,2]
[311833223,1705443065464,-253.70514622,0.00032877,2]
[311833224,1705443065474,-37398.7218408,0.00032877,2]
[311833225,1705443065483,-3497.2598715,0.00032877,2]
[311833226,1705443065493,-6473.4443813,0.00032877,2]
[311833227,1705443065502,-71757.7433027,0.00032877,2]
[311833228,1705443065511,-1000.0,0.000329,2]
[311833229,1705443065522,-2000.0,0.000329,2]
[311833230,1705443065531,-412.90436187,0.000329,2]
[311833231,1705443065541,-1101.73114895,0.000329,2]
[311833232,1705443065551,-262.0,0.000329,2]
[311833233,1705443065560,-3000.0,0.000329,2]
[311833234,1705443065570,-500.0,0.000329,2]
[311833235,1705443065580,-635.56108004,0.000329,2]
[311833236,1705443065589,-151.0,0.000329,7]
[311833237,1705443065599,-284.442644,0.000329,7]
[311833238,1705443065609,-200.0,0.000329,2]
[311833239,1705443065618,-1000.0,0.000329,6]
[311833240,1705443065628,-5401.40939383,0.000329,2]
[311833241,1705443065637,-800.70741833,0.000329,2]
[311833242,1705443065647,-200.0,0.00032987,5]
[311833243,1705443065657,-200.0,0.0003299,7]
[311833244,1705443065667,-164.93302918,0.00032999,7]
[311833245,1705443065677,-100000.0,0.00033,3]
[311833246,1705443065687,-151.0,0.00033,7]
[311833247,1705443065697,-151.0,0.00033,7]
[311833248,1705443065706,-2500.0,0.00033,14]
[311833249,1705443065716,-500.0,0.00033,4]
[311833250,1705443065726,-396.51636942,0.00033,4]
[311833251,1705443065748,-2000.0,0.00033,5]
[311833252,1705443065760,-8835.65559117,0.00033,2]
[311833253,1705443065770,-21075.37330896,0.00033,7]
[311833254,1705443065780,-500000.0,0.00033,5]
[311833255,1705443065789,-500000.0,0.00033,5]
[311833256,1705443065799,-250000.0,0.00033,4]
[311833257,1705443065809,-650.0,0.00033,3]
[311833258,1705443065819,-151.0,0.00033,7]
[311833259,1705443065829,-151.0,0.00033,7]
[311833260,1705443065838,-151.0,0.00033,7]
[311833261,1705443065848,-154.0,0.00033,2]
[311833262,1705443065858,-163.0,0.00033,2]
[311833263,1705443065868,-10000.0,0.00033,15]
[311833264,1705443065877,-10000.0,0.00033,15]
[311833265,1705443065887,-11230.0,0.00033,15]
[311833266,1705443065897,-1835.0,0.00033,15]
[311833267,1705443065907,-5283.0,0.00033,15]
[311833268,1705443065917,-5699.0,0.00033,15]
[311833269,1705443065927,-151.0,0.00033,7]
[311833270,1705443065937,-1000.0,0.00033,6]
[311833271,1705443065948,-150.91,0.00033,2]
[311833272,1705443065958,-150.91,0.00033,2]
[311833273,1705443065968,-150.91,0.00033,2]
[311833274,1705443065978,-150.91,0.00033,2]
[311833275,1705443065989,-150.91,0.00033,2]
[311833276,1705443066000,-150.91,0.00033,2]
[311833277,1705443066010,-150.91,0.00033,2]
[311833278,1705443066021,-150.91,0.00033,2]
[311833279,1705443066031,-150.91,0.00033,2]
[311833280,1705443066041,-150.91,0.00033,2]
[311833281,1705443066051,-150.91,0.00033,2]
[311833282,1705443066060,-150.91,0.00033,2]
[311833283,1705443066070,-150.91,0.00033,2]
[311833284,1705443066080,-150.91,0.00033,2]
[311833285,1705443066090,-150.91,0.00033,2]
[311833286,1705443066099,-150.91,0.00033,2]
[311833287,1705443066110,-150.91,0.00033,2]
[311833288,1705443066120,-150.91,0.00033,2]
[311833289,1705443066130,-150.91,0.00033,2]
[311833290,1705443066140,-150.91,0.00033,2]
[311833291,1705443066150,-150.91,0.00033,2]
[311833292,1705443066160,-150.91,0.00033,2]
[311833293,1705443066170,-150.91,0.00033,2]
[311833294,1705443066182,-150.91,0.00033,2]
[311833295,1705443066192,-150.91,0.00033,2]
[311833296,1705443066203,-150.91,0.00033,2]
[311833297,1705443066213,-150.91,0.00033,2]
[311833298,1705443066225,-150.91,0.00033,2]
[311833299,1705443066235,-150.91,0.00033,2]
[311833300,1705443066246,-150.91,0.00033,2]
[311833301,1705443066257,-150.91,0.00033,2]
[311833302,1705443066268,-150.91,0.00033,2]
[311833303,1705443066278,-150.91,0.00033,2]
[311833304,1705443066289,-150.91,0.00033,2]
[311833305,1705443066299,-150.91,0.00033,2]
[311833306,1705443066309,-150.91,0.00033,2]
[311833307,1705443066319,-150.91,0.00033,2]
[311833308,1705443066328,-150.91,0.00033,2]
[311833309,1705443066339,-150.91,0.00033,2]
[311833310,1705443066349,-150.91,0.00033,2]
[311833311,1705443066359,-150.91,0.00033,2]
[311833312,1705443066369,-150.91,0.00033,2]
[311833313,1705443066379,-150.91,0.00033,2]
[311833314,1705443066390,-150.91,0.00033,2]
[311833315,1705443066399,-150.91,0.00033,2]
[311833316,1705443066410,-150.91,0.00033,2]
[311833317,1705443066420,-150.91,0.00033,2]
[311833318,1705443066430,-150.91,0.00033,2]
[311833319,1705443066440,-150.91,0.00033,2]
[311833320,1705443066449,-150.91,0.00033,2]
[311833321,1705443066460,-150.91,0.00033,2]
[311833322,1705443066470,-150.91,0.00033,2]
[311833323,1705443066480,-150.91,0.00033,2]
[311833324,1705443066490,-150.91,0.00033,2]
[311833325,1705443066500,-150.91,0.00033,2]
[311833326,1705443066510,-150.91,0.00033,2]
[311833327,1705443066520,-150.91,0.00033,2]
[311833328,1705443066530,-150.91,0.00033,2]
[311833329,1705443066539,-150.91,0.00033,2]
[311833330,1705443066549,-150.91,0.00033,2]
[311833331,1705443066560,-150.91,0.00033,2]
[311833332,1705443066570,-150.91,0.00033,2]
[311833333,1705443066579,-150.91,0.00033,2]
[311833334,1705443066589,-150.91,0.00033,2]
[311833335,1705443066599,-150.91,0.00033,2]
[311833336,1705443066610,-150.91,0.00033,2]
[311833337,1705443066620,-150.91,0.00033,2]
[311833338,1705443066631,-150.91,0.00033,2]
[311833339,1705443066642,-150.91,0.00033,2]
[311833340,1705443066652,-150.91,0.00033,2]
[311833341,1705443066662,-150.91,0.00033,2]
[311833342,1705443066672,-150.91,0.00033,2]
[311833343,1705443066682,-150.91,0.00033,2]
[311833344,1705443066692,-150.91,0.00033,2]
[311833345,1705443066702,-150.91,0.00033,2]
[311833346,1705443066712,-150.91,0.00033,2]
[311833347,1705443066721,-150.91,0.00033,2]
[311833348,1705443066731,-150.91,0.00033,2]
[311833349,1705443066741,-150.91,0.00033,2]
[311833350,1705443066751,-150.91,0.00033,2]
[311833351,1705443066761,-150.91,0.00033,2]
[311833352,1705443066774,-150.91,0.00033,2]
[311833353,1705443066784,-150.91,0.00033,2]
[311833354,1705443066795,-150.91,0.00033,2]
[311833355,1705443066805,-150.91,0.00033,2]
[311833356,1705443066814,-150.91,0.00033,2]
[311833357,1705443066825,-150.91,0.00033,2]
[311833358,1705443066835,-150.91,0.00033,2]
[311833359,1705443066845,-150.91,0.00033,2]
[311833360,1705443066855,-150.91,0.00033,2]
[311833361,1705443066865,-150.91,0.00033,2]
[311833362,1705443066875,-150.91,0.00033,2]
[311833363,1705443066886,-150.91,0.00033,2]
[311833364,1705443066895,-150.91,0.00033,2]
[311833365,1705443066905,-150.91,0.00033,2]
[311833366,1705443066916,-150.91,0.00033,2]
[311833367,1705443066926,-150.91,0.00033,2]
[311833368,1705443066936,-150.91,0.00033,2]
[311833369,1705443066946,-962.984574,0.00033013,2]
[311833370,1705443066956,-1085.8231834,0.0003305,5]
[311833371,1705443066966,-3049.46224205,0.0003305,6]
[311833372,1705443066975,-398.58424333,0.0003305,2]
[311833373,1705443066986,-265.64972661,0.0003305,2]
[311833374,1705443066996,-1347.64718664,0.0003305,2]
[311833375,1705443067006,-1434.68205804,0.0003305,2]
[311833376,1705443067015,-728.4791032,0.0003305,2]
[311833377,1705443067026,-167.95,0.0003307,2]
[311833378,1705443067035,-150.0,0.00033096,2]
[311833379,1705443067046,-150.0,0.00033096,2]
[311833380,1705443067055,-150.0,0.00033096,2]
[311833381,1705443067065,-1000.0,0.000331,6]
[311833382,1705443067075,-34249.9774091,0.00033127,2]
[311833383,1705443067085,-3202.8119063,0.00033127,2]
[311833384,1705443067095,-5928.4198204,0.00033127,2]
[311833385,1705443067105,-65834.8819507,0.00033127,2]
[311833386,1705443067115,-500.0,0.0003315,5]
[311833387,1705443067125,-500.0,0.0003315,5]
[311833388,1705443067135,-500.0,0.0003315,5]
[311833389,1705443067145,-500.0,0.0003315,5]
[311833390,1705443067155,-580.06827572,0.0003315,5]
[311833391,1705443067165,-621.90189549,0.0003315,5]
[311833392,1705443067176,-500.0,0.0003315,5]
[311833393,1705443067187,-271.74693039,0.0003315,5]
[311833394,1705443067199,-306.07967946,0.0003315,5]
[311833395,1705443067210,-500.0,0.0003315,5]
[311833396,1705443067220,-500.0,0.0003315,5]
[311833397,1705443067230,-500.0,0.0003315,5]
[311833398,1705443067241,-500.0,0.0003315,5]
[311833399,1705443067251,-500.0,0.0003315,5]
[311833400,1705443067261,-500.0,0.0003315,5]
[311833401,1705443067273,-501.17671804,0.0003315,5]
[311833402,1705443067282,-500.0,0.0003315,5]
[311833403,1705443067292,-500.0,0.0003315,5]
[311833404,1705443067302,-500.0,0.0003315,5]
[311833405,1705443067311,-500.0,0.0003315,5]
[311833406,1705443067321,-500.0,0.0003315,5]
[311833407,1705443067331,-500.0,0.0003315,5]
[311833408,1705443067341,-500.0,0.0003315,5]
[311833409,1705443067351,-500.0,0.0003315,5]
[311833410,1705443067360,-500.0,0.0003315,5]
[311833411,1705443067370,-500.0,0.0003315,5]
[311833412,1705443067380,-743.33,0.0003315,5]
[311833413,1705443067389,-873.79,0.0003315,5]
[311833414,1705443067399,-500.0,0.0003315,20]
[311833415,1705443067409,-503.80109686,0.0003315,5]
[311833416,1705443067419,-962.13,0.0003315,5]
[311833417,1705443067429,-500.0,0.0003315,5]
[311833418,1705443067439,-500.0,0.0003315,5]
[311833419,1705443067449,-500.0,0.0003315,5]
[311833420,1705443067460,-506.72980519,0.0003315,5]
[311833421,1705443067470,-500.0,0.0003315,5]
[311833422,1705443067480,-500.0,0.0003315,5]
[311833423,1705443067734,-500.0,0.0003315,5]
[311833424,1705443067762,-500.0,0.0003315,5]
[311833425,1705443067774,-1000.0,0.0003315,2]
[311833426,1705443067784,-690.29,0.0003315,5]
[311833427,1705443067794,-2013.45,0.0003315,5]
[311833428,1705443067803,-503.204569,0.0003315,5]
[311833429,1705443067813,-500.0,0.0003315,5]
[311833430,1705443067823,-500.0,0.0003315,5]
[311833431,1705443067834,-500.0,0.0003315,5]
[311833432,1705443067844,-500.0,0.0003315,5]
[311833433,1705443067855,-500.0,0.0003315,5]
[311833434,1705443067865,-500.0,0.0003315,5]
[311833435,1705443067875,-500.0,0.0003315,5]
[311833436,1705443067885,-500.0,0.0003315,5]
[311833437,1705443067895,-717.45,0.0003315,5]
[311833438,1705443067905,-500.0,0.0003315,5]
[311833439,1705443067914,-500.0,0.0003315,5]
[311833440,1705443067925,-1066.89,0.0003315,5]
[311833441,1705443067935,-500.0,0.0003315,5]
[311833442,1705443067946,-500.0,0.0003315,5]
[311833443,1705443067956,-506.19274944,0.0003315,5]
[311833444,1705443067967,-510.03888508,0.0003315,5]
[311833445,1705443067977,-500.0,0.0003315,5]
[311833446,1705443067988,-500.0,0.0003315,5]
[311833447,1705443067998,-543.64,0.0003315,5]
[311833448,1705443068008,-500.0,0.0003315,5]
[311833449,1705443068018,-500.0,0.0003315,5]
[311833450,1705443068029,-500.0,0.0003315,5]
[311833451,1705443068039,-500.0,0.0003315,5]
[311833452,1705443068049,-500.0,0.0003315,5]
[311833453,1705443068059,-500.0,0.0003315,5]
[311833454,1705443068069,-500.0,0.0003315,5]
[311833455,1705443068079,-500.0,0.0003315,5]
[311833456,1705443068089,-500.0,0.0003315,5]
[311833457,1705443068099,-500.0,0.0003315,5]
[311833458,1705443068109,-817.43,0.0003315,5]
[311833459,1705443068119,-474.51378758,0.0003315,5]
[311833460,1705443068129,-555.9532703,0.0003315,5]
[311833461,1705443068139,-725.87,0.0003315,5]
[311833462,1705443068149,-500.0,0.0003315,5]
[311833463,1705443068159,-500.0,0.0003315,5]
[311833464,1705443068169,-500.0,0.0003315,5]
[311833465,1705443068180,-1649.7,0.0003315,5]
[311833466,1705443068191,-500.0,0.0003315,4]
[311833467,1705443068202,-229.21267011,0.0003315,5]
[311833468,1705443068212,-500.0,0.0003315,5]
[311833469,1705443068223,-693.25,0.0003315,5]
[311833470,1705443068233,-500.0,0.0003315,5]
[311833471,1705443068244,-500.0,0.0003315,5]
[311833472,1705443068255,-500.0,0.0003315,5]
[311833473,1705443068266,-500.0,0.0003315,5]
[311833474,1705443068278,-500.0,0.0003315,5]
[311833475,1705443068289,-500.0,0.0003315,5]
[311833476,1705443068299,-500.0,0.0003315,5]
[311833477,1705443068310,-500.0,0.0003315,5]
[311833478,1705443068320,-500.0,0.0003315,7]
[311833479,1705443068330,-500.0,0.0003315,5]
[311833480,1705443068340,-500.0,0.0003315,5]
[311833481,1705443068350,-500.0,0.0003315,5]
[311833482,1705443068360,-500.0,0.0003315,5]
[311833483,1705443068370,-500.0,0.0003315,5]
[311833484,1705443068380,-500.0,0.0003315,5]
[311833485,1705443068390,-710.0,0.0003315,5]
[311833486,1705443068399,-500.0,0.0003315,5]
[311833487,1705443068409,-500.0,0.0003315,5]
[311833488,1705443068419,-500.0,0.0003315,5]
[311833489,1705443068428,-500.0,0.0003315,5]
[311833490,1705443068438,-500.0,0.0003315,5]
[311833491,1705443068448,-500.0,0.0003315,5]
[311833492,1705443068458,-500.0,0.0003315,5]
[311833493,1705443068468,-500.0,0.0003315,5]
[311833494,1705443068478,-500.0,0.0003315,5]
[311833495,1705443068488,-500.0,0.0003315,5]
[311833496,1705443068497,-500.0,0.0003315,5]
[311833497,1705443068507,-500.0,0.0003315,5]
[311833498,1705443068517,-500.0,0.0003315,5]
[311833499,1705443068528,-500.0,0.0003315,5]
[311833500,1705443068537,-500.0,0.0003315,5]
[311833501,1705443068547,-623.92,0.0003315,5]
[311833502,1705443068558,-500.0,0.0003315,5]
[311833503,1705443068569,-500.0,0.0003315,5]
[311833504,1705443068579,-511.12027277,0.0003315,5]
[311833505,1705443068590,-500.0,0.0003315,5]
[311833506,1705443068600,-500.0,0.0003315,5]
[311833507,1705443068610,-500.0,0.0003315,5]
[311833508,1705443068620,-500.0,0.0003315,5]
[311833509,1705443068630,-500.0,0.0003315,5]
[311833510,1705443068641,-1070.06,0.0003315,5]
[311833511,1705443068651,-822.91,0.0003315,5]
[311833512,1705443068661,-804.14,0.0003315,5]
[311833513,1705443068671,-500.0,0.0003315,5]
[311833514,1705443068681,-500.0,0.0003315,5]
[311833515,1705443068691,-680.14,0.0003315,5]
[311833516,1705443068700,-303.41782393,0.0003315,5]
[311833517,1705443068710,-989.61,0.0003315,5]
[311833518,1705443068720,-500.0,0.0003315,5]
[311833519,1705443068730,-500.0,0.0003315,5]
[311833520,1705443068751,-500.0,0.0003315,3]
[311833521,1705443068761,-500.0,0.0003315,5]
[311833522,1705443068771,-500.0,0.0003315,5]
[311833523,1705443068782,-500.0,0.0003315,5]
[311833524,1705443068792,-500.0,0.0003315,5]
[311833525,1705443068801,-1553.64,0.0003315,5]
[311833526,1705443068811,-500.0,0.0003315,5]
[311833527,1705443068821,-1105.74,0.0003315,5]
[311833528,1705443068830,-500.0,0.0003315,5]
[311833529,1705443068840,-512.28687501,0.0003315,5]
[311833530,1705443068850,-500.0,0.0003315,5]
[311833531,1705443068860,-500.0,0.0003315,5]
[311833532,1705443068871,-500.0,0.0003315,5]
[311833533,1705443068881,-920.39,0.0003315,2]
[311833534,1705443068892,-500.0,0.0003315,5]
[311833535,1705443068902,-839.74,0.0003315,5]
[311833536,1705443068912,-267.65687513,0.0003315,5]
[311833537,1705443068922,-500.0,0.0003315,5]
[311833538,1705443068932,-500.0,0.0003315,5]
[311833539,1705443068942,-500.0,0.0003315,2]
[311833540,1705443068951,-500.0,0.0003315,5]
[311833541,1705443068961,-500.0,0.0003315,5]
[311833542,1705443068971,-500.0,0.0003315,5]
[311833543,1705443068981,-850.99,0.0003315,5]
[311833544,1705443068991,-500.0,0.0003315,5]
[311833545,1705443069001,-902.5,0.0003315,5]
[311833546,1705443069011,-500.0,0.0003315,5]
[311833547,1705443069021,-500.0,0.0003315,5]
[311833548,1705443069031,-500.0,0.0003315,5]
[311833549,1705443069041,-500.0,0.0003315,5]
[311833550,1705443069051,-500.0,0.0003315,5]
[311833551,1705443069061,-500.0,0.0003315,5]
[311833552,1705443069071,-500.0,0.0003315,5]
[311833553,1705443069081,-500.0,0.0003315,5]
[311833554,1705443069091,-500.0,0.0003315,5]
[311833555,1705443069101,-500.0,0.0003315,5]
[311833556,1705443069111,-500.0,0.0003315,5]
[311833557,1705443069121,-500.0,0.0003315,5]
[311833558,1705443069132,-500.0,0.0003315,5]
[311833559,1705443069141,-724.17,0.0003315,5]
[311833560,1705443069152,-500.0,0.0003315,5]
[311833561,1705443069162,-500.0,0.0003315,5]
[311833562,1705443069171,-500.0,0.0003315,5]
[311833563,1705443069182,-500.0,0.0003315,5]
[311833564,1705443069193,-500.0,0.0003315,5]
[311833565,1705443069203,-500.0,0.0003315,5]
[311833566,1705443069213,-500.0,0.0003315,5]
[311833567,1705443069224,-500.0,0.0003315,5]
[311833568,1705443069234,-500.0,0.0003315,5]
[311833569,1705443069244,-1962.93,0.0003315,5]
[311833570,1705443069254,-974.34,0.0003315,5]
[311833571,1705443069264,-500.0,0.0003315,5]
[311833572,1705443069275,-500.0,0.0003315,5]
[311833573,1705443069286,-500.0,0.0003315,5]
[311833574,1705443069296,-779.46,0.0003315,5]
[311833575,1705443069306,-1082.58,0.0003315,5]
[311833576,1705443069315,-500.0,0.0003315,5]
[311833577,1705443069325,-778.62,0.0003315,5]
[311833578,1705443069335,-500.0,0.0003315,5]
[311833579,1705443069345,-544.52,0.0003315,5]
[311833580,1705443069354,-500.0,0.0003315,5]
[311833581,1705443069364,-714.8,0.0003315,5]
[311833582,1705443069374,-939.32,0.0003315,5]
[311833583,1705443069384,-500.0,0.0003315,5]
[311833584,1705443069393,-500.0,0.0003315,5]
[311833585,1705443069403,-500.0,0.0003315,5]
[311833586,1705443069413,-500.0,0.0003315,5]